fUSD/lending_fUSD_20251128
["ID","MTS","AMOUNT","RATE_DAILY","PERIOD"]
[395015870,1764334234284,-500.0,0.00035616,10]
[395015871,1764334234293,-500.0,0.00035616,10]
[395015872,1764334234302,-500.0,0.00035616,10]
[395015873,1764334234312,-500.0,0.00035616,10]
[395015874,1764334234322,-500.0,0.00035616,10]
[395015875,1764334234331,-500.0,0.00035616,10]
[395015876,1764334234340,-500.0,0.00035616,10]
[395015877,1764334234349,-500.0,0.00035616,10]
[395015878,1764334234359,-500.0,0.00035616,10]
[395015879,1764334234368,-500.0,0.00035616,10]
[395015880,1764334234378,-500.0,0.00035616,10]
[395015881,1764334234387,-500.0,0.00035616,10]
[395015882,1764334234397,-500.0,0.00035616,10]
[395015883,1764334234407,-58.98108198,0.00035616,10]
[395015884,1764334234418,-250.0,0.00035616,10]
[395015885,1764334234430,-191.01891802,0.00035616,10]
[395015886,1764334234439,-205.07923705,0.00035616,10]
[395015887,1764334234457,-365.14023849,0.00035616,10]
[395015888,1764334234472,-211.74150794,0.00035616,10]
[395015889,1764334237606,-288.25849206,0.00035616,10]
[395015890,1764334237616,-507.64248731,0.00035616,10]
[395015891,1764334237625,-500.0,0.00035616,10]
[395015892,1764334237634,-500.0,0.00035616,10]
[395015893,1764334237643,-2004.86,0.00035616,10]
[395015894,1764334237652,-68.86972442,0.00035616,10]
[395015896,1764334237664,-431.13027558,0.00035616,10]
[395015897,1764334237673,-500.0,0.00035616,10]
[395015898,1764334237682,-4640.59,0.00035616,10]
[395015899,1764334237691,-500.0,0.00035616,10]
[395015900,1764334237700,-500.0,0.00035616,10]
[395015901,1764334237710,-508.71144964,0.00035616,10]
[395015902,1764334237720,-582.87,0.00035616,10]
[395015903,1764334237729,-500.0,0.00035616,10]
[395015904,1764334237739,-500.0,0.00035616,10]
[395015905,1764334237748,-500.0,0.00035616,10]
[395015906,1764334237756,-500.0,0.00035616,10]
[395015907,1764334237766,-500.0,0.00035616,10]
[395015908,1764334237775,-500.0,0.00035616,10]
[395015909,1764334237785,-500.0,0.00035616,10]
[395015910,1764334237795,-500.0,0.00035616,10]
[395015911,1764334237810,-645.93,0.00035616,10]
[395015912,1764334237819,-500.0,0.00035616,10]
[395015913,1764334237830,-575.59,0.00035616,10]
[395015914,1764334237840,-500.0,0.00035616,10]
[395015915,1764334237850,-500.0,0.00035616,10]
[395015916,1764334237859,-506.64411193,0.00035616,10]
[395015917,1764334237869,-500.0,0.00035616,10]
[395015919,1764334237884,-500.0,0.00035616,10]
[395015921,1764334237893,-500.0,0.00035616,10]
[395015923,1764334237903,-500.0,0.00035616,10]
[395015925,1764334237914,-500.0,0.00035616,10]
[395015927,1764334237923,-500.0,0.00035616,10]
[395015929,1764334237932,-500.0,0.00035616,10]
[395015931,1764334237941,-500.0,0.00035616,10]
[395015933,1764334237951,-500.0,0.00035616,10]
[395015935,1764334237960,-511.64238677,0.00035616,10]
[395015937,1764334237968,-500.0,0.00035616,10]
[395015965,1764334238212,-421.42,0.00035616,30]
[395015967,1764334238236,-546.6761304,0.00035616,120]
[395015969,1764334238246,-500.0,0.00035644,30]
[395015971,1764334238255,-692.30174,0.00035888,30]
[395015973,1764334238264,-500.0,0.0003589,10]
[395015975,1764334238274,-500.0,0.0003589,10]
[395015976,1764334238287,-500.0,0.0003589,10]
[395015977,1764334238296,-500.0,0.0003589,10]
[395015978,1764334238305,-500.0,0.0003589,10]
[395015979,1764334238315,-500.0,0.0003589,10]
[395015980,1764334238325,-500.0,0.0003589,10]
[395015981,1764334238335,-500.0,0.0003589,10]
[395015982,1764334238344,-500.0,0.0003589,10]
[395015983,1764334238353,-500.0,0.0003589,10]
[395015984,1764334238363,-500.0,0.0003589,10]
[395015985,1764334238372,-500.0,0.0003589,10]
[395015986,1764334238382,-500.0,0.0003589,10]
[395015987,1764334238391,-511.1575052,0.0003589,10]
[395015988,1764334238401,-520.47674401,0.0003589,10]
[395015989,1764334238410,-500.0,0.0003589,10]
[395015990,1764334238419,-500.0,0.0003589,10]
[395015991,1764334238430,-500.0,0.0003589,10]
[395015992,1764334238440,-500.0,0.0003589,10]
[395015993,1764334238450,-500.0,0.0003589,10]
[395015994,1764334238460,-552.57392211,0.0003589,10]
[395015995,1764334238469,-500.0,0.0003589,10]
[395015996,1764334238479,-500.0,0.0003589,10]
[395015997,1764334238488,-500.0,0.0003589,10]
[395015998,1764334238498,-500.0,0.0003589,10]
[395015999,1764334238507,-500.0,0.0003589,10]
[395016000,1764334238516,-500.0,0.0003589,10]
[395016001,1764334238526,-2004.86,0.0003589,10]
[395016002,1764334238535,-500.0,0.0003589,10]
[395016003,1764334238545,-500.0,0.0003589,10]
[395016004,1764334238555,-500.0,0.0003589,10]
[395016005,1764334238564,-4640.59,0.0003589,10]
[395016006,1764334238573,-500.0,0.0003589,10]
[395016007,1764334238583,-500.0,0.0003589,10]
[395016008,1764334238593,-582.87,0.0003589,10]
[395016009,1764334238602,-295.34502466,0.0003589,10]
[395016010,1764334238628,-204.65497534,0.0003589,10]
[395016011,1764334238638,-500.0,0.0003589,10]
[395016012,1764334238647,-187.87063332,0.0003589,10]
[395016013,1764334238676,-312.12936668,0.0003589,10]
[395016014,1764334238686,-423.73016954,0.0003589,10]
[395016017,1764334239843,-76.26983046,0.0003589,10]
[395016018,1764334239854,-487.84589388,0.0003589,10]
[395016019,1764334239865,-12.15410612,0.0003589,10]
[395016020,1764334239874,-500.0,0.0003589,10]
[395016021,1764334239886,-500.0,0.0003589,10]
[395016022,1764334239895,-500.0,0.0003589,10]
[395016023,1764334239904,-645.93,0.0003589,10]
[395016024,1764334239913,-432.71652929,0.0003589,10]
[395016025,1764334239963,-67.28347071,0.0003589,10]
[395016026,1764334239972,-575.59,0.0003589,10]
[395016027,1764334239981,-201.39652929,0.0003589,10]
[395016028,1764334239994,-298.60347071,0.0003589,10]
[395016029,1764334240004,-500.0,0.0003589,10]
[395016030,1764334240013,-500.0,0.0003589,10]
[395016031,1764334240022,-73.64652931,0.0003589,10]
[395016032,1764334240044,-500.0,0.00035616,10]
[395016033,1764334240053,-426.35347069,0.0003589,10]
[395016034,1764334240063,-520.18777346,0.0003589,10]
[395016035,1764334240072,-500.0,0.0003589,10]
[395016036,1764334240082,-314.12938982,0.0003589,10]
[395016037,1764334240093,-185.87061018,0.0003589,10]
[395016038,1764334240102,-500.0,0.0003589,10]
[395016039,1764334240111,-500.0,0.0003589,10]
[395016040,1764334240120,-500.0,0.0003589,10]
[395016041,1764334240129,-500.0,0.0003589,10]
[395016043,1764334240138,-500.0,0.0003589,10]
[395016044,1764334240147,-636.2,0.00036,2]
[395016045,1764334240157,-150.0,0.00036,7]
[395016046,1764334240166,-150.0,0.00036,7]
[395016047,1764334240175,-150.0,0.00036,7]
[395016048,1764334240184,-150.0,0.00036,7]
[395016049,1764334240194,-150.0,0.00036,7]
[395016050,1764334240203,-150.0,0.00036,7]
[395016051,1764334240213,-249.47655448,0.00036088,30]
[395016052,1764334240244,-442.82518552,0.00036088,30]
[395016053,1764334240253,-4.11879834,0.00036154,2]
[395016054,1764334240271,-2191.21120166,0.00036154,2]
[395016055,1764334240280,-500.0,0.00036163,10]
[395016056,1764334240289,-807.01,0.00036163,2]
[395016057,1764334240299,-500.0,0.00036163,10]
[395016058,1764334240309,-500.0,0.00036163,10]
[395016059,1764334240318,-500.0,0.00036163,10]
[395016060,1764334240327,-537.60649216,0.00036164,10]
[395016061,1764334240337,-500.0,0.00036164,10]
[395016062,1764334240346,-500.0,0.00036164,10]
[395016063,1764334240357,-518.63270661,0.00036164,10]
[395016064,1764334240366,-500.0,0.00036164,10]
[395016065,1764334240377,-500.0,0.00036164,10]
[395016066,1764334240387,-500.0,0.00036164,10]
[395016067,1764334240396,-500.0,0.00036164,10]
[395016068,1764334240406,-500.0,0.00036164,10]
[395016069,1764334240415,-500.0,0.00036164,10]
[395016070,1764334240424,-500.0,0.00036164,10]
[395016071,1764334240433,-500.0,0.00036164,10]
[395016072,1764334240443,-571.82446926,0.00036164,10]
[395016073,1764334240451,-91.67251835,0.00036164,10]
[395016074,1764334240471,-408.32748165,0.00036164,10]
[395016075,1764334240480,-500.0,0.00036164,10]
[395016076,1764334240490,-244.70472242,0.00036164,10]
[395016077,1764334240500,-500.0,0.00036164,10]
[395016078,1764334240510,-419.01960121,0.00036164,10]
[395016079,1764334240521,-80.98039879,0.00036164,10]
[395016080,1764334240530,-419.01960121,0.00036164,10]
[395016081,1764334240541,-80.98039879,0.00036164,10]
[395016082,1764334240549,-500.0,0.00036164,10]
[395016083,1764334240559,-500.0,0.00036164,10]
[395016084,1764334240568,-500.0,0.00036164,10]
[395016085,1764334240577,-500.0,0.00036164,10]
[395016086,1764334240586,-500.0,0.00036164,10]
[395016087,1764334240595,-860.92920788,0.00036164,10]
[395016088,1764334240606,-1143.93079212,0.00036164,10]
[395016089,1764334240615,-381.20321468,0.00036164,10]
[395016090,1764334240647,-550.95741486,0.0003589,10]
[395016091,1764334240656,-476.35297186,0.00036163,10]
[395016092,1764334240665,-118.79678532,0.00036164,10]
[395016093,1764334240675,-500.0,0.00036164,10]
[395016094,1764334240684,-500.0,0.00036164,10]
[395016095,1764334240693,-4640.59,0.00036164,10]
[395016096,1764334240703,-500.0,0.00036164,10]
[395016097,1764334240712,-500.0,0.00036164,10]
[395016098,1764334240723,-266.46363477,0.00036164,10]
[395016099,1764334240734,-316.40636523,0.00036164,10]
[395016100,1764334240743,-500.0,0.00036164,10]
[395016101,1764334240752,-500.0,0.00036164,10]
[395016102,1764334240761,-500.0,0.00036164,10]
[395016103,1764334240771,-500.0,0.00036164,10]
[395016104,1764334240782,-500.0,0.00036164,10]
[395016105,1764334240793,-500.0,0.00036164,10]
[395016106,1764334240803,-500.0,0.00036164,10]
[395016107,1764334240814,-500.0,0.00036164,10]
[395016108,1764334240823,-645.93,0.00036164,10]
[395016109,1764334240832,-500.0,0.00036164,10]
[395016110,1764334240842,-575.59,0.00036164,10]
[395016111,1764334240851,-500.0,0.00036164,10]
[395016112,1764334240860,-500.0,0.00036164,10]
[395016113,1764334240871,-500.0,0.00036164,10]
[395016114,1764334240880,-500.0,0.00036164,10]
[395016115,1764334240889,-500.0,0.00036164,10]
[395016116,1764334240898,-500.0,0.00036164,10]
[395016117,1764334240907,-500.0,0.00036164,10]
[395016118,1764334240916,-628.9579334,0.00036164,10]
[395016119,1764334240926,-500.0,0.00036164,10]
[395016120,1764334240935,-500.0,0.00036164,10]
[395016121,1764334240944,-500.0,0.00036164,10]
[395016122,1764334240954,-1400.97258954,0.0003617,2]
[395016123,1764334240963,-692.30174,0.00036288,30]
[395016124,1764334240972,-1000.0,0.00036299,7]
[395016125,1764334240981,-1000.0,0.00036358,7]
[395016126,1764334240991,-212.16264182,0.00036359,120]
[395016127,1764334240999,-222.34384055,0.00036359,120]
[395016128,1764334241009,-151.0,0.00036435,14]
[395016129,1764334241019,-500.0,0.00036437,10]
[395016130,1764334241027,-807.01,0.00036437,2]
[395016131,1764334241036,-500.0,0.00036437,10]
[395016132,1764334241045,-339.37123975,0.00036437,10]
[395016133,1764334241071,-160.62876025,0.00036437,10]
[395016134,1764334241080,-500.0,0.00036438,10]
[395016135,1764334241089,-500.0,0.00036438,10]
[395016136,1764334241098,-500.0,0.00036438,10]
[395016137,1764334241106,-500.0,0.00036438,10]
[395016138,1764334241115,-500.0,0.00036438,10]
[395016139,1764334241124,-500.0,0.00036438,10]
[395016140,1764334241133,-500.0,0.00036438,10]
[395016141,1764334241142,-500.0,0.00036438,10]
[395016142,1764334241151,-500.0,0.00036438,10]
[395016143,1764334241159,-500.0,0.00036438,10]
[395016144,1764334241168,-500.0,0.00036438,10]
[395016145,1764334241177,-500.0,0.00036438,10]
[395016146,1764334241186,-500.0,0.00036438,10]
[395016147,1764334241194,-500.0,0.00036438,10]
[395016148,1764334241206,-500.0,0.00036438,10]
[395016149,1764334241215,-500.0,0.00036438,10]
[395016150,1764334241224,-500.0,0.00036438,10]
[395016151,1764334241233,-500.0,0.00036438,10]
[395016152,1764334241242,-500.0,0.00036438,10]
[395016153,1764334241252,-500.0,0.00036438,10]
[395016154,1764334241261,-2004.86,0.00036438,10]
[395016155,1764334241269,-500.0,0.00036438,10]
[395016156,1764334241279,-500.0,0.00036438,10]
[395016157,1764334241290,-500.0,0.00036438,10]
[395016158,1764334241301,-4640.59,0.00036438,10]
[395016159,1764334241310,-500.0,0.00036438,10]
[395016160,1764334241320,-500.0,0.00036438,10]
[395016161,1764334241329,-582.87,0.00036438,10]
[395016162,1764334241338,-500.0,0.00036438,10]
[395016163,1764334241347,-500.0,0.00036438,10]
[395016164,1764334241356,-500.0,0.00036438,10]
[395016165,1764334241365,-520.48576362,0.00036438,10]
[395016166,1764334241374,-500.0,0.00036438,10]
[395016167,1764334241383,-500.0,0.00036438,10]
[395016168,1764334241393,-500.0,0.00036438,10]
[395016169,1764334241402,-500.0,0.00036438,10]
[395016170,1764334241411,-645.93,0.00036438,10]
[395016171,1764334241420,-500.0,0.00036438,10]
[395016172,1764334241429,-575.59,0.00036438,10]
[395016173,1764334241438,-500.0,0.00036438,10]
[395016174,1764334241447,-500.0,0.00036438,10]
[395016175,1764334241456,-500.0,0.00036438,10]
[395016176,1764334241465,-500.0,0.00036438,10]
[395016177,1764334241474,-500.0,0.00036438,10]
[395016178,1764334241663,-500.0,0.00036438,10]
[395016179,1764334241673,-500.0,0.00036438,10]
[395016180,1764334241682,-500.0,0.00036438,10]
[395016181,1764334241691,-500.0,0.00036438,10]
[395016182,1764334241700,-151.0,0.00036438,31]
[395016183,1764334241711,-500.0,0.00036438,10]
[395016184,1764334241725,-151.0,0.00036438,31]
[395016185,1764334241736,-276.369886,0.00036438,31]
[395016186,1764334241746,-151.0,0.00036438,31]
[395016187,1764334241755,-692.30174,0.00036488,30]
[395016188,1764334241765,-1400.97258955,0.00036595,2]
[395016189,1764334241774,-224.47,0.000366,120]
[395016190,1764334241783,-3722.7063803,0.00036656,2]
[395016191,1764334241792,-692.30174,0.00036688,30]
[395016192,1764334241803,-500.0,0.00036711,10]
[395016193,1764334241812,-807.01,0.00036711,2]
[395016194,1764334241821,-500.0,0.00036711,10]
[395016195,1764334241830,-500.0,0.00036712,10]
[395016196,1764334241839,-500.0,0.00036712,10]
[395016197,1764334241850,-500.0,0.00036712,10]
[395016198,1764334241859,-500.0,0.00036712,10]
[395016199,1764334241868,-500.0,0.00036712,10]
[395016200,1764334241879,-500.0,0.00036712,10]
[395016201,1764334241888,-500.0,0.00036712,10]
[395016202,1764334241897,-500.0,0.00036712,10]
[395016203,1764334241906,-500.0,0.00036712,10]
[395016204,1764334241915,-500.0,0.00036712,10]
[395016205,1764334241924,-500.0,0.00036712,10]
[395016206,1764334241933,-500.0,0.00036712,10]
[395016207,1764334241942,-245.31002535,0.00036712,10]
[395016208,1764334241950,-500.0,0.00036712,10]
[395016209,1764334241959,-500.0,0.00036712,10]
[395016210,1764334241969,-500.0,0.00036712,10]
[395016211,1764334241979,-500.0,0.00036712,10]
[395016212,1764334241989,-500.0,0.00036712,10]
[395016213,1764334241998,-500.0,0.00036712,10]
[395016214,1764334242007,-515.14126271,0.00036712,10]
[395016215,1764334242016,-2004.86,0.00036712,10]
[395016216,1764334242025,-500.0,0.00036712,10]
[395016217,1764334242033,-500.0,0.00036712,10]
[395016218,1764334242042,-500.0,0.00036712,10]
[395016219,1764334242051,-4640.59,0.00036712,10]
[395016220,1764334242060,-500.0,0.00036712,10]
[395016221,1764334242070,-500.0,0.00036712,10]
[395016222,1764334242079,-582.87,0.00036712,10]
[395016223,1764334242087,-500.0,0.00036712,10]
[395016224,1764334242097,-500.0,0.00036712,10]
[395016225,1764334242106,-500.0,0.00036712,10]
[395016226,1764334242115,-500.0,0.00036712,10]
[395016227,1764334242124,-500.0,0.00036712,10]
[395016228,1764334242133,-500.0,0.00036712,10]
[395016229,1764334242141,-500.0,0.00036712,10]
[395016230,1764334242151,-645.93,0.00036712,10]
[395016231,1764334242160,-500.0,0.00036712,10]
[395016232,1764334242169,-575.59,0.00036712,10]
[395016233,1764334242178,-500.0,0.00036712,10]
[395016234,1764334242187,-500.0,0.00036712,10]
[395016235,1764334242196,-500.0,0.00036712,10]
[395016236,1764334242206,-500.0,0.00036712,10]
[395016237,1764334242215,-500.0,0.00036712,10]
[395016238,1764334242224,-500.0,0.00036712,10]
[395016239,1764334242233,-500.0,0.00036712,10]
[395016240,1764334242242,-500.0,0.00036712,10]
[395016241,1764334242251,-500.0,0.00036712,10]
[395016242,1764334242259,-500.0,0.00036712,10]
[395016243,1764334242268,-151.0,0.00036747,31]
[395016244,1764334242277,-151.0,0.00036747,31]
[395016245,1764334242286,-174.61801,0.00036747,31]
[395016246,1764334242295,-151.0,0.00036747,31]
[395016247,1764334242304,-151.0,0.00036747,31]
[395016248,1764334242314,-6185.5742983,0.00036747,2]
[395016249,1764334242323,-165.96335548,0.00036778,28]
[395016250,1764334242332,-174.0,0.00036803,120]
[395016251,1764334242341,-174.0,0.00036803,120]
[395016252,1764334242350,-500.0,0.00036831,10]
[395016253,1764334242359,-519.26463593,0.00036831,10]
[395016254,1764334242368,-500.0,0.00036831,10]
[395016255,1764334242378,-504.18087352,0.00036831,10]
[395016256,1764334242387,-500.0,0.00036831,10]
[395016257,1764334242396,-501.2972468,0.00036831,10]
[395016258,1764334242406,-500.0,0.00036831,10]
[395016260,1764334242415,-500.0,0.00036831,10]
[395016261,1764334242424,-500.0,0.00036831,10]
[395016263,1764334242433,-795.72,0.00036831,10]
[395016265,1764334242442,-500.0,0.00036831,10]
[395016266,1764334242451,-518.21,0.00036831,10]
[395016267,1764334242460,-500.0,0.00036831,10]
[395016269,1764334242469,-500.0,0.00036831,10]
[395016270,1764334242478,-500.0,0.00036831,10]
[395016271,1764334242487,-500.0,0.00036831,10]
[395016272,1764334242497,-662.7,0.00036831,10]
[395016273,1764334242506,-174.0,0.00036832,120]
[395016274,1764334242515,-260.0,0.00036832,120]
[395016275,1764334242524,-1000.0,0.00036864,2]
[395016276,1764334242533,-500.0,0.00036873,5]
[395016277,1764334242543,-151.0,0.00036874,14]
[395016279,1764334242552,-151.0,0.00036875,14]
[395016280,1764334242561,-221.24922856,0.00036875,14]
[395016281,1764334242570,-500.0,0.00036877,120]
[395016282,1764334242579,-500.0,0.00036877,10]
[395016283,1764334242588,-500.0,0.00036877,10]
[395016284,1764334242597,-553.5,0.00036877,10]
[395016285,1764334242606,-500.0,0.00036877,10]
[395016286,1764334242615,-502.48,0.00036877,10]
[395016287,1764334242624,-500.0,0.00036877,10]
[395016288,1764334242634,-502.91318965,0.00036877,10]
[395016289,1764334242644,-500.0,0.00036877,10]
[395016290,1764334242653,-500.0,0.00036877,10]
[395016291,1764334242663,-500.0,0.00036877,10]
[395016292,1764334242672,-500.0,0.00036877,10]
[395016293,1764334242681,-500.0,0.00036877,10]
[395016294,1764334242690,-500.0,0.00036877,10]
[395016295,1764334242699,-500.0,0.00036877,10]
[395016296,1764334242708,-500.0,0.00036877,10]
[395016297,1764334242717,-586.64580343,0.00036877,10]
[395016298,1764334242726,-530.04,0.00036877,10]
[395016299,1764334242735,-500.0,0.00036877,10]
[395016300,1764334242746,-500.0,0.00036877,10]
[395016301,1764334242754,-500.0,0.00036877,10]
[395016302,1764334242763,-580.95845877,0.00036877,10]
[395016303,1764334242772,-500.0,0.00036877,10]
[395016304,1764334242781,-500.0,0.00036877,10]
[395016305,1764334242790,-500.0,0.00036877,10]
[395016306,1764334242799,-500.0,0.00036877,10]
[395016307,1764334242812,-500.0,0.00036877,10]
[395016308,1764334242822,-500.0,0.00036877,10]
[395016309,1764334242831,-500.0,0.00036877,10]
[395016310,1764334242840,-500.0,0.00036877,10]
[395016311,1764334242850,-337.56512566,0.00036877,10]
[395016312,1764334242860,-500.0,0.00036877,10]
[395016313,1764334242869,-500.0,0.00036877,10]
[395016314,1764334242878,-500.0,0.00036877,10]
[395016315,1764334242887,-500.0,0.00036877,10]
[395016316,1764334242896,-500.0,0.00036877,10]
[395016317,1764334242905,-506.11326634,0.00036877,10]
[395016318,1764334242914,-500.0,0.00036877,10]
[395016319,1764334242923,-500.0,0.00036877,10]
[395016320,1764334242932,-500.0,0.00036877,10]
[395016321,1764334242941,-500.0,0.00036877,10]
[395016322,1764334242950,-500.0,0.00036877,10]
[395016323,1764334242959,-500.0,0.00036877,10]
[395016324,1764334242970,-500.0,0.00036877,10]
[395016325,1764334242982,-500.0,0.00036877,10]
[395016326,1764334242991,-352.92102858,0.00036877,10]
[395016327,1764334243000,-500.0,0.00036877,10]
[395016328,1764334243009,-500.0,0.00036877,10]
[395016329,1764334243018,-500.0,0.00036877,10]
[395016330,1764334243027,-500.0,0.00036877,10]
[395016331,1764334243036,-500.0,0.00036877,10]
[395016332,1764334243045,-500.0,0.00036877,10]
[395016333,1764334243054,-500.0,0.00036877,10]
[395016334,1764334243063,-500.0,0.00036877,10]
[395016335,1764334243072,-500.0,0.00036877,10]
[395016336,1764334243081,-500.0,0.00036877,10]
[395016337,1764334243090,-500.0,0.00036877,10]
[395016338,1764334243098,-540.47,0.00036877,10]
[395016339,1764334243107,-500.0,0.00036877,10]
[395016340,1764334243116,-500.0,0.00036877,10]
[395016341,1764334243125,-500.0,0.00036877,10]
[395016342,1764334243135,-604.98,0.00036877,10]
[395016343,1764334243144,-87100.9,0.00036877,5]
[395016344,1764334243153,-500.0,0.00036877,10]
[395016345,1764334243163,-500.0,0.00036877,10]
[395016346,1764334243170,-500.0,0.00036877,10]
[395016347,1764334243178,-500.0,0.00036877,10]
[395016348,1764334243187,-363.75166273,0.00036877,10]
[395016349,1764334243196,-500.0,0.00036877,10]
[395016350,1764334243205,-500.0,0.00036877,10]
[395016351,1764334243214,-535.55,0.00036877,10]
[395016352,1764334243223,-637.08,0.00036877,10]
[395016353,1764334243232,-500.0,0.00036877,10]
[395016354,1764334243242,-500.0,0.00036877,10]
[395016355,1764334243250,-500.0,0.00036877,10]
[395016356,1764334243259,-500.0,0.00036877,10]
[395016357,1764334243268,-521.8858578,0.00036877,10]
[395016358,1764334243277,-1520.7,0.00036877,10]
[395016359,1764334243286,-500.0,0.00036877,10]
[395016360,1764334243295,-552.65718992,0.00036877,10]
[395016361,1764334243304,-500.0,0.00036877,10]
[395016362,1764334243313,-565.49,0.00036877,10]
[395016363,1764334243322,-593.92,0.00036877,10]
[395016364,1764334243331,-716.18,0.00036877,10]
[395016365,1764334243340,-500.0,0.00036877,10]
[395016366,1764334243349,-500.0,0.00036877,10]
[395016367,1764334243358,-500.0,0.00036877,10]
[395016368,1764334243367,-759.55,0.00036877,10]
[395016369,1764334243376,-500.0,0.00036877,10]
[395016370,1764334243385,-500.0,0.00036877,10]
[395016371,1764334243394,-500.0,0.00036877,10]
[395016372,1764334243404,-720.38,0.00036877,10]
[395016373,1764334243413,-500.0,0.00036877,10]
[395016374,1764334243423,-500.0,0.00036877,10]
[395016375,1764334243432,-500.0,0.00036877,10]
[395016376,1764334243441,-683.27,0.00036877,10]
[395016377,1764334243450,-696.72,0.00036877,10]
[395016378,1764334243460,-500.0,0.00036877,10]
[395016379,1764334243469,-500.0,0.00036877,10]
[395016381,1764334243478,-500.0,0.00036877,10]
[395016382,1764334243488,-500.0,0.00036877,10]
[395016383,1764334243498,-500.0,0.00036877,10]
[395016384,1764334243507,-500.0,0.00036877,10]
[395016385,1764334243516,-500.0,0.00036877,10]
[395016386,1764334243526,-500.0,0.00036877,10]
[395016387,1764334243534,-500.0,0.00036877,10]
[395016388,1764334243544,-500.0,0.00036877,10]
[395016389,1764334243553,-500.0,0.00036877,10]
[395016390,1764334243561,-500.0,0.00036877,10]
[395016391,1764334243570,-500.0,0.00036877,10]
[395016392,1764334243579,-500.0,0.00036877,10]
[395016393,1764334243588,-500.0,0.00036877,10]
[395016394,1764334243597,-500.0,0.00036877,10]
[395016395,1764334243606,-500.0,0.00036877,10]
[395016396,1764334243616,-500.0,0.00036877,10]
[395016397,1764334243626,-500.0,0.00036877,10]
[395016398,1764334243636,-500.0,0.00036877,10]
[395016399,1764334243645,-500.0,0.00036877,10]
[395016400,1764334243654,-500.0,0.00036877,10]
[395016401,1764334243664,-500.0,0.00036877,10]
[395016402,1764334243673,-500.0,0.00036877,10]
[395016403,1764334243682,-500.0,0.00036877,10]
[395016404,1764334243691,-429.15389789,0.00036877,10]
[395016405,1764334243700,-500.0,0.00036877,10]
[395016406,1764334243709,-500.0,0.00036877,10]
[395016407,1764334243718,-500.0,0.00036877,10]
[395016408,1764334243727,-500.0,0.00036877,10]
[395016409,1764334243737,-500.0,0.00036877,10]
[395016410,1764334243746,-503.96,0.00036877,10]
[395016411,1764334243756,-500.0,0.00036877,10]
[395016412,1764334243765,-500.0,0.00036877,10]
[395016413,1764334243774,-500.0,0.00036877,10]
[395016414,1764334243783,-213.59,0.00036877,10]
[395016415,1764334243792,-1000.0,0.00036877,4]
[395016416,1764334243804,-500.0,0.00036877,10]
[395016417,1764334243813,-500.0,0.00036877,10]
[395016418,1764334243822,-4736.14829183,0.00036877,10]
[395016419,1764334245119,-276.369886,0.00036438,31]
[395016420,1764334245128,-151.0,0.00036438,31]
[395016421,1764334245137,-104.52849389,0.00036438,31]